Cogmind - Beta 13 @@@ ROGUE MODE // 2024.03.17 @ 08:32:09 Player: Flugkiller Result: Destroyed by YI-UF0 with YI-UF0's Doublenader Performance ------------- Evolutions (0) 0 Regions Visited (2) 400 Robots Destroyed (14) 70 Value Destroyed (364) 364 Prototype IDs (0) 0 Alien Tech Used (0) 0 Bonus (0) 0 TOTAL SCORE: 834 Bonus ------- None Cogmind --------- Core Integrity 0/250 Matter 300/300 Energy 100/100 System Corruption 2% Temperature Cool (0) Movement Core (700) Ox13 Location -10/Mines Parts ------- > --- POWER (1) -------- (None) > --- PROPULSION (2) --- (None) > --- UTILITY (2) ------ High-capacity Storage Unit > --- WEAPON (2) ------- (None) > --- INVENTORY (20) --- Ion Engine Light Treads Light Treads Light Treads Small Storage Unit Medium Storage Unit Structural Scanner ECM Suite Light Assault Rifle Light Cannon Light Cannon Grenade Launcher Mining Claw Peak State ------------ > --- POWER ------------ Light Ion Engine > --- PROPULSION ------- Light Treads Light Treads > --- UTILITY ---------- Medium Storage Unit High-capacity Storage Unit > --- WEAPON ----------- Light Cannon Light Cannon > --- INVENTORY -------- Ion Engine Light Treads Light Treads Light Treads Small Storage Unit Light Assault Rifle Light Cannon Light Cannon Grenade Launcher Mining Claw [Rating: 8] Favorites ----------- Power Light Ion Engine Engine Light Ion Engine Propulsion Light Treads Treads Light Treads Utility High-capacity Storage Unit Storage High-capacity Storage Unit Weapon Light Cannon Energy Gun Medium Laser Ballistic Gun Light Assault Rifle Ballistic Cannon Light Cannon Build | -11 -10 -10 ------- Run | Yrd Mat Min Slots Evolved . | . . . Power . | . . . Propulsion . | . . . Utility . | . . . Weapon . | . . . Parts Attached 14 | 6 8 . Power 1 | 1 . . Engine 1 | 1 . . Core . | . . . Reactor . | . . . Propulsion 3 | 2 1 . Treads 3 | 2 1 . Leg . | . . . Wheel . | . . . Hover . | . . . Flight . | . . . Utility 3 | 1 2 . Device . | . . . Storage 3 | 1 2 . Processor . | . . . Hackware . | . . . Protection . | . . . Artifact . | . . . Weapon 7 | 2 5 . Energy Gun 1 | 1 . . Energy Cannon . | . . . Ballistic Gun 1 | 1 . . Ballistic Cannon 5 | . 5 . Launcher . | . . . Special Weapon . | . . . Impact Weapon . | . . . Slashing Weapon . | . . . Piercing Weapon . | . . . Special Melee Weapon . | . . . Unidentified Prototypes . | . . . Parts Lost 5 | . . 5 Power 1 | . . 1 Propulsion 2 | . . 2 Utility . | . . . Weapon 2 | . . 2 Highest Loss Streak 5 | . . 5 To Critical Strikes . | . . . Average Slot Usage (%) 84 | . 84 84 Engine 13 | . 14 13 Treads 28 | . 28 28 Storage 14 | . 14 14 Ballistic Cannon 26 | . 26 27 Naked Turns . | . . . Heaviest Build 49 | 11 49 49 Greatest Support 40 | 40 40 40 Greatest Overweight (x) 13 | . 1 13 Average Overweight (x) . | . . 1 Largest Inventory Capacity 20 | 8 20 20 Average Capacity 14 | 7 11 20 Most Carried 13 | 4 11 13 Average Carried 10 | 3 9 11 Final Capacity 20 | 8 20 20 Final Carried 13 | 4 11 13 Class Distribution -------------------- 100% | Mutant Dominant Class ---------------- Mutant | -10/Materials Mutant | -10/Mines Resources | -11 -10 -10 ----------- Run | Yrd Mat Min Matter Collected 689 | 207 363 119 Remotely . | . . . Salvage Created 413 | . 405 8 Parts 23 | . 23 . Haulers Intercepted 2 | . 2 . Recyclers Shooed . | . . . Parts Field Recycled . | . . . Retrieved Matter . | . . . Parts Self-Destructed . | . . . Prevented . | . . . Kills | -11 -10 -10 ------- Run | Yrd Mat Min Combat Hostiles Destroyed 11 | . 8 3 Cannons 11 | . 8 3 Classes Destroyed 6 | . 5 1 Worker 1 | . 1 . Hauler 2 | . 2 . Operator 1 | . 1 . Watcher 2 | . 2 . Grunt 8 | . 8 . Assembled 3 | . . 3 Best Kill Streak 4 | . 4 2 Combat Bots Only 2 | . 2 2 Max Kills in Single Turn 1 | . 1 1 Gunslinging . | . . . Exploded . | . . . Melee . | . . . Uniques/NPCs Destroyed . | . . . Combat | -11 -10 -10 -------- Run | Yrd Mat Min Hostile Shots Fired 56 | . 23 33 Missed 16 | . 9 7 Damage Taken 1073 | . 186 887 Core 257 | . 14 243 Absorbed by Shields . | . . . Regen/Repaired (Parts) 90 | . 90 . Core Remaining (%) 100 | 100 . . Volleys Fired 43 | . 34 9 Largest 2 | . 2 2 Hottest 70 | . 70 70 Shots Fired 85 | . 68 17 Gun . | . . . Cannon 85 | . 68 17 Launcher . | . . . Special . | . . . Kinetic 85 | . 68 17 Thermal . | . . . Explosive . | . . . Electromagnetic . | . . . Robot Hit Streak 10 | . 10 5 Robot Miss Streak 5 | . 5 1 Penetration Max . | . . . Secondary Targets . | . . . Shots Hit Robots 49 | . 38 11 Core Hits 23 | . 17 6 Critical Kills . | . . . Critical Parts Destroyed . | . . . Critical Strikes . | . . . Melee Attacks . | . . . Impact . | . . . Slashing . | . . . Piercing . | . . . Sneak Attacks . | . . . Combat Hostiles . | . . . Follow-up Attacks . | . . . Damage Inflicted 862 | 2 676 184 Guns . | . . . Cannons 859 | . 676 183 Explosions . | . . . Melee . | . . . Ramming 3 | 2 . 1 Kinetic 859 | . 676 183 Thermal . | . . . Explosive . | . . . Electromagnetic . | . . . Impact . | . . . Slashing . | . . . Piercing . | . . . Highest Corruption 2 | . 2 2 Average Corruption 1 | . 1 2 Corruption Purged . | . . . Corruption Blocked . | . . . Effects 18 | . 7 11 Message Errors 3 | . 2 1 Matter Fused 5 | . 1 4 Heat Flow Errors 4 | . 2 2 Energy Discharges 4 | . 1 3 Parts Fused 1 | . . 1 Data Loss (major) 1 | . 1 . Overload Shots . | . . . Overflow Damage 8 | . 7 1 Projectiles 8 | . 7 1 Explosions . | . . . Melee . | . . . Knockbacks 11 | . 7 4 Impact . | . . . Kinetic 11 | . 7 4 Secondary . | . . . Self-Inflicted Damage . | . . . Shots . | . . . Rammed 3 | 1 . 2 Targets Rammed 3 | 1 . 2 Kicked . | . . . Crushed . | . . . Highest Temperature 262 | . 188 262 Average Temperature 61 | . 55 75 Received Heat Transfer 162 | . 102 60 Siege Activations . | . . . Robots Corrupted . | . . . Combat Hostiles . | . . . Parts Fried . | . . . Impact Corruptions . | . . . Robots Melted . | . . . Combat Hostiles . | . . . Parts Melted . | . . . Heat Transferred . | . . . Parts Sabotaged . | . . . Parts Stolen . | . . . Parts Stripped . | . . . Power Chain Reactions . | . . . Alert | -11 -10 -10 ------- Run | Yrd Mat Min Peak Influence 298 | . 298 3 Initial 3 | . . 3 Average 49 | . 91 1 Maximum Alert Level 1 | . 1 . Low Security (%) 93 | 100 88 100 Level 1 6 | . 11 . Level 2 . | . . . Level 3 . | . . . Level 4 . | . . . Level 5 . | . . . High Security . | . . . Max Security . | . . . Squads Dispatched 2 | . 2 . Investigation 2 | . 2 . Extermination . | . . . Reinforcement . | . . . Assault . | . . . Garrison . | . . . Intercept . | . . . Searches Triggered . | . . . Construction Impeded . | . . . Haulers Reinforced . | . . . Active Scanning Responses . | . . . Cargo Convoy Interrupts . | . . . Stealth | -11 -10 -10 --------- Run | Yrd Mat Min Distress Signals . | . . . Communications Jammed . | . . . Distress Signals . | . . . Times Spotted 19 | . 14 5 Peak Tracking Total 3 | . 3 2 Tactical Retreats 1 | . . 1 Traps | -11 -10 -10 ------- Run | Yrd Mat Min Traps Triggered 3 | . 3 . Indirectly . | . . . Trap Hack Attempts . | . . . Triggered . | . . . Disarmed . | . . . Reprogrammed . | . . . Reused . | . . . Traps Extracted . | . . . Installed . | . . . Triggered . | . . . Machines | -11 -10 -10 ---------- Run | Yrd Mat Min Machines Disabled . | . . . Max in Single Turn . | . . . Machines Repaired . | . . . Machines Dismantled . | . . . Machines Sabotaged . | . . . Overloaded Fab Kills . | . . . Hacking | -11 -10 -10 --------- Run | Yrd Mat Min Machines Accessed 8 | . 8 . Terminals 6 | . 6 . Fabricators . | . . . Repair Stations 1 | . 1 . Recycling Units 1 | . 1 . Scanalyzers . | . . . Garrison Access . | . . . Total Hacks 20 | . 20 . Successful 9 | . 9 . Failed 10 | . 10 . Catastrophic 5 | . 5 . Database Lockouts 1 | . 1 . Manual 10 | . 10 . Terminals 15 | . 15 . Fabricators . | . . . Repair Stations 2 | . 2 . Recycling Units 3 | . 3 . Scanalyzers . | . . . Garrison Access . | . . . Terminal Hacks 5 | . 5 . Robot Analysis 1 | . 1 . Branch Access Points 1 | . 1 . Locate Traps 1 | . 1 . Dispatch Records 1 | . 1 . Hauler Manifests 1 | . 1 . Fabricator Hacks . | . . . Repair Station Hacks 2 | . 2 . Scan Component 1 | . 1 . Repair 1 | . 1 . Recycling Unit Hacks 2 | . 2 . Report Inventory 1 | . 1 . Retrieve Components 1 | . 1 . Scanalyzer . | . . . Garrison Access Hacks . | . . . Unauthorized Hacks . | . . . Terminals . | . . . Fabricators . | . . . Repair Stations . | . . . Recycling Units . | . . . Scanalyzers . | . . . Garrison Access . | . . . Data Cores Recovered 1 | . 1 . Used . | . . . Hacking Detections 7 | . 7 . Full Trace Events 1 | . 1 . Feedback Events . | . . . Feedback Blocked . | . . . Robot Schematics Acquired . | . . . Robots Built . | . . . Authchips . | . . . Time . | . . . Total Robot Build Rating . | . . . Part Schematics Acquired . | . . . Parts Built . | . . . Authchips . | . . . Time . | . . . Total Part Build Rating . | . . . Parts Repaired 1 | . 1 . Time 26 | . 26 . Parts Recycled . | . . . Recycled Matter . | . . . Retrieved Matter . | . . . Retrieved Components 3 | . 3 . Parts Scanalyzed . | . . . Part Schematics Acquired . | . . . Parts Damaged . | . . . Bothacking | -11 -10 -10 ------------ Run | Yrd Mat Min Used RIF Installer . | . . . Robots Hacked . | . . . Non-combat . | . . . Combat . | . . . Robot Hacks Applied . | . . . Relay Couplers Released . | . . . Fabnet Peak Effective % . | . . . Robots Rewired . | . . . Allies Hacked . | . . . Hacks Repelled . | . . . Allies | -11 -10 -10 -------- Run | Yrd Mat Min Total Allies 1 | . . 1 Largest Group 1 | . . 1 Highest-Rated Group 31 | . . 31 Highest-Rated Ally 31 | . . 31 Total Orders . | . . . Ally Attacks 2 | . . 2 Total Damage . | . . . Kills . | . . . Allies Corrupted . | . . . Allies Melted . | . . . Intel | -11 -10 -10 ------- Run | Yrd Mat Min Robot Analysis Total 1 | . 1 . Derelict Logs Recovered 1 | . . 1 Drone Launches . | . . . Drone Recoveries . | . . . Exploration | -11 -10 -10 ------------- Run | Yrd Mat Min Turns Passed 2038 | 65 1102 871 Spaces Moved 821 | 39 545 237 Core 11 | 10 . 1 Treads 810 | 29 545 236 Legs . | . . . Wheels . | . . . Hover . | . . . Flight . | . . . Fastest Speed 50 | 50 160 240 Average Speed 188 | 131 169 241 Slowest Speed 700 | 160 240 700 Overloaded Moves . | . . . Propulsion Burnouts . | . . . Robots Hopped . | . . . Cave-ins Triggered . | . . . Exploration Rate (%) 53 | 4 91 64 Regions Visited 2 Branch Regions 1 Pre-discovered Areas . | . . . Known Exits Taken 1 | . 1 . Unknown Exits Taken 1 | 1 . . Scrap Searched 1 | . . 1 Spaces Dug . | . . . Terrain Destroyed . | . . . Melee . | . . . Projectile . | . . . AOE . | . . . Terrain Rammed . | . . . Walls Destroyed . | . . . Machines Disabled . | . . . Actions | -11 -10 -10 --------- Run | Yrd Mat Min Total 1222 | 49 659 514 Wait 318 | . 54 264 Move 819 | 38 544 237 Hop . | . . . Pick Up 15 | 4 9 2 Fast Attach 10 | 6 4 . Attach . | . . . Detach 3 | . 3 . Swap 4 | . 4 . Drop 7 | . 7 . Fire 43 | . 34 9 Melee . | . . . Ram . | . . . Kick . | . . . Crush 3 | 1 . 2 Escape Stasis . | . . . Rewire . | . . . Trap . | . . . Miscellaneous . | . . . Route ------- -11/Scrapyard -10/Materials (discovered 4 exits: [*Mat x3] / *Min) -10/Mines (discovered 2 exits: [*Mat x2]) History --------- Turn | Location | Event 7 | -11/Scrapyard | Discovered new exit (range 15) 66 | -11/Scrapyard | Entered Materials 302 | -10/Materials | Build established: Mutant 519 | -10/Materials | Discovered new exit (range 16) 679 | -10/Materials | Central database locked down 712 | -10/Materials | Discovered new exit (range 10) 778 | -10/Materials | Repaired Lgt. Cannon 880 | -10/Materials | Discovered new exit (range 4) 1022 | -10/Materials | Identified exit to Mines 1168 | -10/Materials | Entered Mines 1190 | -10/Mines | Learned 4 Materials zone layouts 1191 | -10/Mines | Assembled infested the area 1510 | -10/Mines | Discovered new exit (range 5) 1867 | -10/Mines | Discovered new exit (range 8) 1969 | -10/Mines | Received a Mining Laser from a helpful Derelict 2032 | -10/Mines | Core integrity fell below 50% 2038 | -10/Mines | Core integrity fell below 20% 2039 | -10/Mines | Destroyed by YI-UF0 with YI-UF0's Doublenader Last Messages --------------- 02018_ U-05 Engineer lays Concrete. 02019_ K-01 Serf collects debris. 02019_ U-05 Engineer lays Concrete. 02020_ The unstable cave ceiling collapses. 02020_ Lgt. Cannon destroyed. 02020_ U-05 Engineer lays Concrete. 02021_ YI-UF0 mumbles something. 02021_ U-05 Engineer lays Concrete. 02022_ K-01 Serf collects debris. 02022_ U-05 Engineer builds a Wall. 02024_ The unstable cave ceiling collapses. 02026_ U-05 Engineer lays Concrete. 02028_ The unstable cave ceiling collapses. 02028_ U-05 Engineer lays Concrete. 02028_ U-05 Engineer builds a Wall. 02029_ U-05 Engineer lays Concrete. 02029_ Lgt. Cannon destroyed. 02029_ U-05 Engineer destroyed. 02031_ Lgt. Treads destroyed. 02031_ U-05 Engineer destroyed. Map ----- +----------------------------------------------------+ | ??? #??##%*!*%% !##????## # | | ??# ## ????### |!!*##?????# ## | | ??# ??## #??????###%% #??????# #? | | ??#????###?????????#####??????## % #? | | ???????????????????????????????# * ##? | | ???????????????????????????????# #?? | | ??????????????????????????????##### # #?? | | ??????????????????????????????# % ###?? | | ??????????????????????????????# ######??? | | ??????????????????????????????# ######??? | | ??????????????????????????????# #???????? | | ?????????????????????????######%#???????? | | ?????????????????????????# !% !#???????? | | ????????????????????????## ######???????? | | ????????????????????????## ####??###????? | | ???????????????????????### # #?# ##???? | | ???????????????????????# # # ## #???? | | ???????????????????????# ! #???? | | ??????????????????????### ##???? | | ??????????????????????# # # | ##????? | | ?????????????????????## # # # ##?????? | | ????????????????????## ## #######??????? | | ????????????????????# #??????????? | | ???????????????????## #??????????? | | ???????????????????# ###????????? | | ??????????????????## @ #????????? | | ?????????????????## ####?????? | | ????????????????## # #?????? | | ????????????????# #?????? | | ????????????????## ### #?????? | | ?????????????????# #?? #?????? | | ?????????????????# ####???#?????? | | ?????????????????# #????????????? | | ???????????????! ##????????????? | | ???????????? =%= #?????????????? | | ?????????? #?????????????? | | ????????#!% ####?????????????? | | ???????? ### g #????????????????? | | ????????????## ##????????????????? | | ?????????????## ??????????????????? | | ??????????????# ??????????????????? | | ??????????????## % #??????????????????? | | ??????????????? #???????????????????? | | ??????????????### ????????????????????? | | ????????????????####????????????????????? | | ????????????????????????????????????????? | | ????????????????????????????????????????? | | ????????????????????????????????????????? | | ????????????????????????????????????????? | | ????????????????????????????????????????? | +----------------------------------------------------+ Best States ------------- Heat Dissipation 25 Energy Generation 10 Energy Capacity 125 Matter Stores 300 Matter Capacity 300 Sight Range 16 Terrain Scan Density 10 Evasion (%) 50 Recoil Reduction 2 Item Schematics ----------------- None Robot Schematics ------------------ None Fabricated ------------ Nothing Alien Tech Used ----------------- None Achievements -------------- None Challenges ------------ None Game ------ Seed CombatFireWarhead Manual? 0 Play Time 00:12:29 Cumulative 30.2 hours Start 2024.03.17 @ 08:20:25 End 2024.03.17 @ 08:32:09 Sessions 1 Manual Loads 0 Difficulty Rogue Special Mode None Game No. 43 Rogue 43 Adventurer 0 Explorer 0 Win Type - Total 2 Types 2/0/0/0/0/0/0/0/0 Lore% 12 Gallery% 29 Achievement% 24 Wizard Run 0 Options --------- Layout 0 ASCII 0 Keyboard 1 Movement Numpad Keybinds 0 Fullscreen 1 Font 18/SmallcapsGlow Map View 76x50 Zoom Use 0% Tactical HUD 1 Map Filters NONE Filters NONE Steam 1 RUN: eedb6b67-e5d2-4fc8-a954-7afb29c297da